bitfinex/quotes_BTCUSD_20230103
["timestamp","ask_amount","ask_price","bid_price","bid_amount"]
[1672773354528,0.711708,16647.0,16646.0,1.28336061]
[1672773355344,0.711708,16647.0,16646.0,1.78336061]
[1672773355595,0.111,16647.0,16646.0,1.78336061]
[1672773355878,0.111,16647.0,16646.0,2.67996798]
[1672773355879,0.52322218,16647.0,16646.0,2.67996798]
[1672773356393,0.48551065,16647.0,16646.0,2.67996798]
[1672773356648,0.03572498,16647.0,16646.0,2.67996798]
[1672773356899,0.63643298,16647.0,16646.0,2.67996798]
[1672773357140,0.63643298,16647.0,16646.0,2.28336061]
[1672773357887,0.03572498,16647.0,16646.0,2.28336061]
[1672773358137,0.03090774,16647.0,16646.0,2.28336061]
[1672773358384,0.48069001,16647.0,16646.0,2.6799953]
[1672773359408,0.03090774,16647.0,16646.0,2.6799953]
[1672773360147,0.48072188,16647.0,16646.0,2.6799953]
[1672773361397,0.48072188,16647.0,16646.0,2.28336061]
[1672773361646,0.48072188,16647.0,16646.0,2.68002837]
[1672773363165,0.03090774,16647.0,16646.0,2.68002837]
[1672773363412,0.63161574,16647.0,16646.0,2.68002837]
[1672773363664,0.03090774,16647.0,16646.0,2.28336061]
[1672773364163,0.03090774,16647.0,16646.0,2.6799854]
[1672773364418,0.48078186,16647.0,16646.0,2.6799854]
[1672773367955,0.41588964,16647.0,16646.0,2.6799854]
[1672773368205,0.38532858,16647.0,16646.0,2.6799854]
[1672773369213,0.98603658,16647.0,16646.0,2.6799854]
[1672773369452,0.98603658,16647.0,16646.0,2.28336061]
[1672773369973,0.38532858,16647.0,16646.0,1.78336061]
[1672773370216,1.49792225,16648.0,16646.0,2.17984069]
[1672773370476,2.50254499,16648.0,16647.0,0.38435]
[1672773370721,2.09861625,16648.0,16647.0,0.1803]
[1672773371047,1.74080856,16648.0,16647.0,0.1803]
[1672773371465,1.75180856,16648.0,16647.0,0.18071377]
[1672773371975,1.76280856,16648.0,16647.0,0.18771377]
[1672773372715,1.76269682,16648.0,16647.0,0.47580077]
[1672773375987,1.76269682,16648.0,16647.0,0.48542862]
[1672773377271,1.76263982,16648.0,16647.0,0.87573417]
[1672773377549,1.76263982,16648.0,16647.0,1.49251317]
[1672773377550,0.56129582,16648.0,16647.0,1.49251317]
[1672773377751,0.022,16648.0,16647.0,1.49251317]
[1672773377974,0.01234911,16648.0,16647.0,1.49251317]
[1672773378963,0.61302111,16648.0,16647.0,1.49251317]
[1672773379703,0.01234911,16648.0,16647.0,1.49251317]
[1672773381387,1.66358277,16648.0,16647.0,1.99251317]
[1672773381645,1.06291077,16648.0,16647.0,1.99251317]
[1672773381893,0.61302111,16648.0,16647.0,1.99251317]
[1672773382429,1.06290301,16648.0,16647.0,1.99251317]
[1672773382680,0.61302111,16648.0,16647.0,1.99251317]
[1672773382927,0.4622316,16648.0,16647.0,1.99251317]
[1672773383841,1.0629036,16648.0,16647.0,1.99251317]
[1672773384091,0.4622316,16648.0,16647.0,1.99251317]
[1672773385583,0.4622316,16648.0,16647.0,1.70442617]
[1672773385835,0.82215961,16648.0,16647.0,3.05863387]
[1672773386122,0.82215961,16648.0,16647.0,3.04065227]
[1672773386416,0.64217141,16648.0,16647.0,3.04065227]
[1672773386657,0.64217141,16648.0,16647.0,2.43994427]
[1672773386910,0.64217141,16648.0,16647.0,3.04065227]
[1672773387741,0.64217141,16648.0,16647.0,3.64136027]
[1672773388251,0.6408223,16648.0,16647.0,3.64136027]
[1672773388503,0.6298223,16648.0,16647.0,3.63436027]
[1672773388756,0.6298223,16648.0,16647.0,3.03865227]
[1672773389273,0.6298223,16648.0,16647.0,3.03365227]
[1672773389525,0.8098105,16648.0,16647.0,2.43294427]
[1672773389782,1.04987052,16648.0,16647.0,0.98742062]
[1672773390057,0.53990787,16648.0,16647.0,0.37064162]
[1672773390305,1.83662196,16649.0,16647.0,0.37064162]
[1672773390567,0.600672,16648.0,16647.0,0.51362598]
[1672773390828,0.600672,16648.0,16647.0,0.30334162]
[1672773391653,0.600672,16648.0,16647.0,1.3107012]
[1672773391913,0.600672,16648.0,16647.0,0.5809222]
[1672773392167,0.600672,16648.0,16647.0,0.22034162]
[1672773392419,2.43727296,16649.0,16647.0,0.53025246]
[1672773392666,2.43726796,16649.0,16648.0,0.1803]
[1672773392920,0.53990787,16649.0,16648.0,0.7511761]
[1672773393169,0.53990787,16649.0,16648.0,0.977379]
[1672773393412,0.53990787,16649.0,16648.0,1.70088625]
[1672773393659,1.201219,16650.0,16648.0,1.70088625]
[1672773393660,1.74112687,16650.0,16648.0,1.70088625]
[1672773393909,2.14505561,16650.0,16649.0,0.383244]
[1672773394187,1.74112687,16650.0,16649.0,0.1793]
[1672773394425,1.74112687,16650.0,16649.0,0.18159021]
[1672773394426,2.14505561,16650.0,16649.0,0.18159021]
[1672773395170,2.52730624,16650.0,16649.0,0.1793]
[1672773395416,2.58899837,16650.0,16649.0,0.1793]
[1672773395664,2.58899837,16650.0,16649.0,0.18159021]
[1672773396416,2.58899837,16650.0,16649.0,0.1793]
[1672773396903,2.14584709,16650.0,16649.0,0.48525989]
[1672773397395,2.14584709,16650.0,16649.0,0.48575416]
[1672773397651,2.14584709,16650.0,16649.0,0.18208448]
[1672773397903,2.14584709,16650.0,16649.0,0.17979427]
[1672773398161,1.60613074,16650.0,16649.0,0.18208448]
[1672773398413,2.20673074,16650.0,16649.0,0.17979427]
[1672773398662,1.60613074,16650.0,16649.0,0.17979427]
[1672773400424,1.60613074,16650.0,16649.0,0.17990877]
[1672773400669,1.60613074,16650.0,16649.0,0.1798218]
[1672773401674,1.60613074,16650.0,16649.0,0.1797073]
[1672773402182,1.60613074,16650.0,16649.0,0.1798218]
[1672773402672,1.60613074,16650.0,16649.0,0.1797073]
[1672773403181,1.60613074,16650.0,16649.0,0.1798218]
[1672773403700,2.20673074,16650.0,16649.0,0.1798218]
[1672773405240,2.20673074,16650.0,16649.0,0.1797073]
[1672773405716,2.81315307,16650.0,16649.0,0.1798218]
[1672773405965,2.20673074,16650.0,16649.0,0.1798218]
[1672773406235,2.20673074,16650.0,16649.0,0.1797073]
[1672773406546,2.81315307,16650.0,16649.0,0.1797073]
[1672773407227,2.21255307,16650.0,16649.0,0.1797073]
[1672773407971,2.81315307,16650.0,16649.0,0.1797073]
[1672773408224,2.20673074,16650.0,16649.0,0.1797073]
[1672773409215,2.81315307,16650.0,16649.0,0.1797073]
[1672773409708,2.81315307,16650.0,16649.0,0.1798218]
[1672773409965,2.81315307,16650.0,16649.0,0.1797073]
[1672773412817,2.21255307,16650.0,16649.0,0.1797073]
[1672773413000,2.81315307,16650.0,16649.0,0.1797073]
[1672773413509,2.81315307,16650.0,16649.0,0.1798218]
[1672773414300,2.81315307,16650.0,16649.0,0.1797073]
[1672773414564,3.42993207,16650.0,16649.0,0.1797073]
[1672773416311,3.80263523,16650.0,16649.0,0.1797073]
[1672773420042,3.18585623,16650.0,16649.0,0.1797073]
[1672773420546,3.80263523,16650.0,16649.0,0.1797073]
[1672773421535,3.18585623,16650.0,16649.0,0.1797073]
[1672773424036,3.80263523,16650.0,16649.0,0.1797073]
[1672773425051,3.80263523,16650.0,16649.0,0.17962017]
[1672773426580,3.80263523,16650.0,16649.0,0.52244693]
[1672773426844,2.81315307,16650.0,16649.0,0.52244693]
[1672773428631,2.81315307,16650.0,16649.0,0.17962017]
[1672773428886,3.42993207,16650.0,16649.0,0.17962017]
[1672773429141,2.81315307,16650.0,16649.0,0.17962017]
[1672773429383,2.21255307,16650.0,16649.0,0.17962017]
[1672773429897,2.81315307,16650.0,16649.0,0.17962017]
[1672773430135,2.21255307,16650.0,16649.0,0.17962017]
[1672773431136,2.21255307,16650.0,16649.0,0.52770095]
[1672773432884,1.60613074,16650.0,16649.0,0.52770095]
[1672773433131,1.202202,16650.0,16649.0,0.52770095]
[1672773434652,1.202202,16650.0,16649.0,0.52988236]
[1672773436505,1.202202,16650.0,16649.0,1.14666136]
[1672773437005,1.74226437,16650.0,16649.0,1.14666136]
[1672773437249,1.202202,16650.0,16649.0,0.52988236]
[1672773437509,1.74226726,16650.0,16649.0,0.52988236]
[1672773437749,1.74226343,16650.0,16649.0,0.52988236]
[1672773437994,1.201202,16650.0,16649.0,0.52988236]
[1672773438257,1.74126858,16650.0,16649.0,0.52988236]
[1672773439253,1.74226858,16650.0,16649.0,0.52988236]
[1672773439498,1.74126858,16650.0,16649.0,0.52988236]
[1672773439748,1.74126858,16650.0,16649.0,0.55988236]
[1672773440506,1.74126858,16650.0,16649.0,0.55770095]
[1672773440725,1.74126858,16650.0,16649.0,0.55781004]
[1672773445796,1.74126858,16650.0,16649.0,0.55772196]
[1672773448016,1.201202,16650.0,16649.0,0.55772196]
[1672773448264,0.6006,16650.0,16649.0,0.55772196]
[1672773448520,0.54006658,16651.0,16650.0,0.5]
[1672773448773,0.54006658,16651.0,16650.0,2.46010702]
[1672773449020,1.74579044,16652.0,16650.0,2.46010702]
[1672773449267,0.54006658,16651.0,16650.0,1.89631702]
[1672773449518,0.54006658,16651.0,16650.0,2.87420332]
[1672773449789,1.14524844,16652.0,16650.0,2.87420332]
[1672773450054,0.54469944,16652.0,16651.0,0.96736574]
[1672773451335,0.54569944,16652.0,16651.0,1.34305385]
[1672773451584,0.54569944,16652.0,16651.0,1.34473773]
[1672773453077,0.00463286,16652.0,16651.0,1.33973773]
[1672773453300,0.00463286,16652.0,16651.0,1.36973773]
[1672773453571,0.00463286,16652.0,16651.0,1.3702287]
[1672773454325,0.45411614,16652.0,16651.0,1.3702287]
[1672773454543,0.45411479,16652.0,16651.0,1.3702287]
[1672773457163,0.813561,16652.0,16651.0,1.3702287]
[1672773457426,1.17300485,16652.0,16651.0,1.9707927]
[1672773457676,1.17300485,16652.0,16651.0,2.7498567]
[1672773457935,1.44260165,16652.0,16651.0,2.1492927]
[1672773458222,1.17300485,16652.0,16651.0,2.1492927]
[1672773458463,1.44260729,16652.0,16651.0,2.1492927]
[1672773458693,0.99312536,16652.0,16651.0,2.7498567]
[1672773458940,1.17281463,16652.0,16651.0,2.7498567]
[1672773459445,1.35250938,16652.0,16651.0,2.7498567]
[1672773459948,1.17281463,16652.0,16651.0,2.7498567]
[1672773460208,1.17281463,16652.0,16651.0,2.1492927]
[1672773460702,1.35250976,16652.0,16651.0,2.4495627]
[1672773460953,1.35234333,16652.0,16651.0,1.8489987]
[1672773461201,1.17268512,16652.0,16651.0,1.8489987]
[1672773461449,1.62216705,16652.0,16651.0,1.8489987]
[1672773461964,1.35256461,16652.0,16651.0,1.8489987]
[1672773462451,1.35256461,16652.0,16651.0,1.5487287]
[1672773462942,1.17253791,16652.0,16651.0,2.1492927]
[1672773463208,1.17253791,16652.0,16651.0,2.7498567]
[1672773463949,0.99286828,16652.0,16651.0,2.7498567]
[1672773464200,0.99286828,16652.0,16651.0,3.0501267]
[1672773464733,0.99286828,16652.0,16651.0,2.4495627]
[1672773464969,0.99286828,16652.0,16651.0,1.5487287]
[1672773467100,0.9927635,16652.0,16651.0,2.1492927]
[1672773467856,0.9927635,16652.0,16651.0,2.7498567]
[1672773468074,0.9927635,16652.0,16651.0,2.7603937]
[1672773469995,0.9927635,16652.0,16651.0,3.0606637]
[1672773470215,0.72330827,16652.0,16651.0,2.8813637]
[1672773474639,0.54366356,16652.0,16651.0,2.8813637]
[1672773476415,0.54366356,16652.0,16651.0,2.8898637]
[1672773477672,0.54366356,16652.0,16651.0,2.50863859]
[1672773477905,0.54366356,16652.0,16651.0,3.58950259]
[1672773479123,0.54366356,16652.0,16651.0,3.0353176]
[1672773479560,0.54366356,16652.0,16651.0,3.6358816]
[1672773480344,0.54366356,16652.0,16651.0,3.0353176]
[1672773480604,0.72333891,16652.0,16651.0,3.0353176]
[1672773480858,0.72333891,16652.0,16651.0,2.4347536]
[1672773481878,0.72333891,16652.0,16651.0,3.0353176]
[1672773484677,0.99285193,16652.0,16651.0,2.4347536]
[1672773485461,0.99285193,16652.0,16651.0,3.0353176]
[1672773486234,0.99285193,16652.0,16651.0,2.7350476]
[1672773486477,0.99285193,16652.0,16651.0,2.1344836]
[1672773486977,1.35220263,16652.0,16651.0,2.1344836]
[1672773487224,1.17252728,16652.0,16651.0,2.1344836]
[1672773487467,0.99303871,16652.0,16651.0,2.4347636]
[1672773487711,0.99303871,16652.0,16651.0,3.0353276]
[1672773488479,0.99303871,16652.0,16651.0,2.4347636]
[1672773489461,0.99303871,16652.0,16651.0,2.43466212]
[1672773489720,0.98953871,16652.0,16651.0,2.43466212]
[1672773490476,0.98953871,16652.0,16651.0,2.25436212]
[1672773490477,1.16902728,16652.0,16651.0,2.25436212]
[1672773490720,1.16902728,16652.0,16651.0,2.85492612]
[1672773490981,0.98957238,16652.0,16651.0,2.85492612]
[1672773491489,0.98957238,16652.0,16651.0,2.25436212]
[1672773491747,0.98957238,16652.0,16651.0,2.85492612]
[1672773492000,0.98957238,16652.0,16651.0,2.25436212]
[1672773492253,1.34892308,16652.0,16651.0,2.85492612]
[1672773492971,1.16902728,16652.0,16651.0,2.85492612]
[1672773493690,1.16902728,16652.0,16651.0,2.50854711]
[1672773493939,1.16902728,16652.0,16651.0,2.28264676]
[1672773494425,1.61821565,16652.0,16651.0,2.28264676]
[1672773494671,1.16902728,16652.0,16651.0,2.88321076]
[1672773495710,1.34901388,16652.0,16651.0,2.88321076]
[1672773496221,0.98966318,16652.0,16651.0,2.88321076]
[1672773496952,1.16902728,16652.0,16651.0,2.88321076]
[1672773497647,1.34903802,16652.0,16651.0,2.88321076]
[1672773497910,1.34903802,16652.0,16651.0,3.48377476]
[1672773498153,0.98968732,16652.0,16651.0,2.88321076]
[1672773500284,0.98968732,16652.0,16651.0,2.88320076]
[1672773500507,1.15902728,16652.0,16651.0,2.88320076]
[1672773501870,1.15902728,16652.0,16651.0,2.88321076]
[1672773502111,1.15902728,16652.0,16651.0,2.88320076]
[1672773502112,1.33870263,16652.0,16651.0,2.88320076]
[1672773502327,1.60872236,16652.0,16651.0,2.88320076]
[1672773502552,1.15953596,16652.0,16651.0,2.88320076]
[1672773503108,1.60872433,16652.0,16651.0,2.88320076]
[1672773503349,1.33870263,16652.0,16651.0,2.88320076]
[1672773503780,1.60875538,16652.0,16651.0,2.88320076]
[1672773504281,1.33870263,16652.0,16651.0,2.88320076]
[1672773505221,1.33870263,16652.0,16651.0,2.80853711]
[1672773505477,1.33870263,16652.0,16651.0,3.40910111]
[1672773505728,1.15964231,16652.0,16651.0,3.58940111]
[1672773505977,1.3288845,16652.0,16651.0,3.58940111]
[1672773506229,1.3288845,16652.0,16651.0,3.87572823]
[1672773506476,0.70042795,16652.0,16651.0,3.87572823]
[1672773506978,0.52034543,16652.0,16651.0,5.18555875]
[1672773507505,0.52034543,16652.0,16651.0,6.86762045]
[1672773507506,0.22075058,16652.0,16651.0,6.86762045]
[1672773507721,0.00367332,16653.0,16652.0,0.5]
[1672773508062,0.62947448,16654.0,16652.0,7.49808283]
[1672773508311,0.62947448,16654.0,16653.0,1.44869916]
[1672773508550,0.27012378,16654.0,16653.0,3.55038516]
[1672773508797,0.631573,16655.0,16654.0,0.5]
[1672773509051,0.631573,16655.0,16654.0,5.30041318]
[1672773509304,0.00209852,16655.0,16654.0,6.47223909]
[1672773509535,0.00194852,16655.0,16654.0,6.23217907]
[1672773510300,0.00194852,16655.0,16654.0,5.76035316]
[1672773510552,0.00194852,16655.0,16654.0,6.67870058]
[1672773510809,0.00194852,16655.0,16654.0,5.77870058]
[1672773511027,0.00194852,16655.0,16654.0,5.76071898]
[1672773511278,0.00194852,16655.0,16654.0,5.89971898]
[1672773512541,0.00194852,16655.0,16654.0,5.91770058]
[1672773513048,0.00194852,16655.0,16654.0,6.19978824]
[1672773513559,0.00194852,16655.0,16654.0,6.51835618]
[1672773513778,0.00194852,16655.0,16654.0,6.23626852]
[1672773514030,0.00194852,16655.0,16654.0,5.91770058]
[1672773514287,0.00194852,16655.0,16654.0,5.89971898]
[1672773514547,0.00194852,16655.0,16654.0,6.27287324]
[1672773514787,0.00194852,16655.0,16654.0,5.89971898]
[1672773515511,0.00194852,16655.0,16654.0,5.19971898]
[1672773516273,0.00194852,16655.0,16654.0,5.54753907]
[1672773516524,0.00194852,16655.0,16654.0,5.84772907]
[1672773516770,0.00194852,16655.0,16654.0,5.49990898]
[1672773517799,0.18477511,16657.0,16655.0,0.5]
[1672773518048,0.45489889,16657.0,16656.0,2.46873116]
[1672773518288,0.18477511,16657.0,16656.0,2.46873116]
[1672773518536,0.18477511,16657.0,16656.0,3.06948019]
[1672773519561,0.18477511,16657.0,16656.0,2.83463852]
[1672773519826,0.18477511,16657.0,16656.0,2.23425452]
[1672773520078,0.18477511,16657.0,16656.0,2.37325452]
[1672773520325,0.18477511,16657.0,16656.0,2.97363852]
[1672773520588,0.18477511,16657.0,16656.0,2.37325452]
[1672773521342,0.18477511,16657.0,16656.0,2.97363852]
[1672773521596,0.18477511,16657.0,16656.0,2.57363852]
[1672773522347,0.18477511,16657.0,16656.0,3.17402252]
[1672773522592,0.18477511,16657.0,16656.0,3.57402252]
[1672773522836,0.18477511,16657.0,16656.0,3.57411586]
[1672773523881,0.18477511,16657.0,16656.0,2.97373186]
[1672773524579,0.45489889,16657.0,16656.0,2.37334786]
[1672773525336,0.23257932,16657.0,16656.0,2.97373186]
[1672773525857,0.23257932,16657.0,16656.0,2.60818953]
[1672773527847,0.23257932,16657.0,16656.0,2.00771219]
[1672773528097,0.23257932,16657.0,16656.0,2.90540686]
[1672773528599,0.59193002,16657.0,16656.0,2.30502286]
[1672773530615,0.59193002,16657.0,16656.0,2.12572286]
[1672773530839,0.59193002,16657.0,16656.0,1.92172686]
[1672773531083,0.23257932,16657.0,16656.0,2.52211086]
[1672773531344,0.23257932,16657.0,16656.0,2.7421937]
[1672773531594,0.23257932,16657.0,16656.0,2.53637608]
[1672773532600,0.22831101,16657.0,16656.0,2.53637608]
[1672773535339,0.4079429,16657.0,16656.0,2.53637608]
[1672773536843,0.17963189,16657.0,16656.0,2.53637608]
[1672773538356,0.17963189,16657.0,16656.0,2.83656608]
[1672773539083,0.17963189,16657.0,16656.0,2.44209304]
[1672773539343,0.17963189,16657.0,16656.0,3.43695008]
[1672773539583,0.17963189,16657.0,16656.0,2.83656608]
[1672773539834,0.17963189,16657.0,16656.0,3.43695008]
[1672773540085,0.17963189,16657.0,16656.0,4.03733408]
[1672773540585,0.17963189,16657.0,16656.0,3.61725008]
[1672773541612,0.44934746,16657.0,16656.0,3.61725008]
[1672773542315,0.44934746,16657.0,16656.0,4.21763408]
[1672773542556,0.17963189,16657.0,16656.0,4.21763408]
[1672773542799,0.17963189,16657.0,16656.0,4.22381853]
[1672773543097,0.17963189,16657.0,16656.0,4.52381853]
[1672773543590,0.17963189,16657.0,16656.0,4.22381853]
[1672773543844,0.44934746,16657.0,16656.0,4.22381853]
[1672773545629,1.07825464,16657.0,16656.0,4.22381853]
[1672773545851,0.80853907,16657.0,16656.0,4.22381853]
[1672773546409,0.44918837,16657.0,16656.0,3.02305053]
[1672773546646,1.506844,16658.0,16656.0,3.62343453]
[1672773546647,0.906532,16658.0,16656.0,3.62343453]
[1672773546905,0.45014448,16657.0,16656.0,2.82680053]
[1672773547165,0.45014448,16657.0,16656.0,3.00650053]
[1672773547409,0.45014448,16657.0,16656.0,3.62283453]
[1672773548249,0.45014448,16657.0,16656.0,3.00650053]
[1672773548479,0.45014448,16657.0,16656.0,3.62283453]
[1672773548731,0.906532,16658.0,16656.0,3.62283453]
[1672773548976,0.45015258,16657.0,16656.0,2.43232749]
[1672773549237,0.4501324,16657.0,16656.0,3.00710053]
[1672773549475,0.4501324,16657.0,16656.0,3.62343453]
[1672773549738,0.4501324,16657.0,16656.0,4.08481853]
[1672773549987,0.4501324,16657.0,16656.0,4.22481853]
[1672773550226,0.4501324,16657.0,16656.0,4.08481853]
[1672773550473,0.4501324,16657.0,16656.0,3.62343453]
[1672773551022,0.4501324,16657.0,16656.0,3.02295719]
[1672773551264,0.4501324,16657.0,16656.0,2.40662319]
[1672773551509,0.45012635,16657.0,16656.0,2.26762319]
[1672773551751,0.45012635,16657.0,16656.0,3.00900719]
[1672773552004,0.45012635,16657.0,16656.0,3.62534119]
[1672773552249,0.92548789,16658.0,16656.0,3.62534119]
[1672773552466,1.52580389,16658.0,16657.0,0.1796]
[1672773553006,2.12611589,16658.0,16657.0,0.1796]
[1672773553472,2.12611589,16658.0,16657.0,0.55469063]
[1672773554228,1.14485227,16658.0,16657.0,0.55469063]
[1672773554492,1.14485227,16658.0,16657.0,0.69669063]
[1672773554746,1.74516427,16658.0,16657.0,0.69732597]
[1672773555235,1.14485227,16658.0,16657.0,0.69720661]
[1672773555724,1.14485227,16658.0,16657.0,1.09167965]
[1672773556222,0.54453627,16658.0,16657.0,1.09167965]
[1672773558466,1.14484827,16658.0,16657.0,0.69657127]
[1672773558725,1.74516027,16658.0,16657.0,0.69657127]
[1672773560285,1.14484827,16658.0,16657.0,0.69720661]
[1672773560605,1.14484827,16658.0,16657.0,0.51772597]
[1672773561086,1.14484827,16658.0,16657.0,0.51709063]
[1672773561347,1.76118227,16658.0,16657.0,0.51709063]
[1672773561853,1.22159377,16658.0,16657.0,0.51709063]
[1672773562348,1.14549439,16658.0,16657.0,0.51709063]
[1672773563585,0.54518239,16658.0,16657.0,0.51709063]
[1672773563849,1.14549439,16658.0,16657.0,0.51709063]
[1672773564405,0.60525977,16658.0,16657.0,0.14236463]
[1672773564620,2.80183839,16658.0,16657.0,0.14236463]
[1672773564861,2.56177837,16658.0,16657.0,0.14236463]
[1672773565367,1.96146637,16658.0,16657.0,0.14236463]
[1672773565624,1.94544437,16658.0,16657.0,0.00036463]
[1672773565880,1.95344437,16658.0,16657.0,0.00036463]
[1672773566124,1.34513237,16658.0,16657.0,0.00036463]
[1672773566369,0.75282037,16658.0,16657.0,0.00036463]
[1672773566630,1.35313237,16658.0,16657.0,0.00036463]
[1672773567896,1.95344437,16658.0,16657.0,0.00036463]
[1672773568191,1.95344437,16658.0,16657.0,0.00217]
[1672773568940,2.49361032,16658.0,16657.0,0.00217]
[1672773569449,2.09913728,16658.0,16657.0,0.00217]
[1672773569682,1.49882528,16658.0,16657.0,0.00180537]
[1672773570509,2.09913728,16658.0,16656.0,1.25996771]
[1672773570825,2.49361032,16658.0,16656.0,1.25996771]
[1672773571270,1.89329832,16658.0,16656.0,1.25996771]
[1672773571517,1.54789876,16658.0,16657.0,0.34597729]
[1672773571769,1.14542572,16658.0,16657.0,0.34606755]
[1672773572988,0.54511372,16658.0,16657.0,0.38306755]
[1672773574276,1.74573772,16658.0,16657.0,0.037]
[1672773574545,2.14021076,16658.0,16657.0,0.037]
[1672773575132,1.60004481,16658.0,16657.0,0.037]
[1672773576396,1.60004481,16658.0,16657.0,0.03690894]
[1672773577218,1.49336876,16658.0,16657.0,0.03690894]
[1672773577469,0.76772386,16658.0,16657.0,0.3301543]
[1672773577733,0.5781331,16658.0,16657.0,0.68593506]
[1672773577975,1.71859631,16658.0,16657.0,0.68402091]
[1672773578229,1.71859631,16658.0,16657.0,0.32824015]
[1672773579539,1.71859631,16658.0,16657.0,0.68287407]
[1672773579803,0.54015121,16658.0,16657.0,0.68287407]
[1672773580325,1.14046321,16658.0,16657.0,0.68287407]
[1672773580840,0.54015121,16658.0,16657.0,0.68287407]
[1672773581871,1.14046321,16658.0,16657.0,0.68287407]
[1672773582655,1.74077521,16658.0,16657.0,0.03499479]
[1672773582913,1.200624,16658.0,16657.0,0.03499479]
[1672773583177,1.14056128,16658.0,16657.0,0.03508505]
[1672773583793,0.600312,16658.0,16657.0,0.03508505]
[1672773583962,1.58172642,16658.0,16657.0,0.03499479]
[1672773584224,1.58172642,16658.0,16657.0,0.03508505]
[1672773584478,2.80446472,16658.0,16657.0,0.03508505]
[1672773584847,2.80446472,16658.0,16657.0,0.03499479]
[1672773585267,2.54127572,16658.0,16657.0,0.03499479]
[1672773585533,2.78844272,16658.0,16657.0,0.03499479]
[1672773585800,2.80446472,16658.0,16657.0,0.03499479]
[1672773586055,3.40477672,16658.0,16657.0,0.03499479]
[1672773586332,3.40477672,16658.0,16657.0,0.03508505]
[1672773586333,2.78844272,16658.0,16657.0,0.03508505]
[1672773586565,3.40477672,16658.0,16657.0,0.03499479]
[1672773586801,3.14158772,16658.0,16657.0,0.03499479]
[1672773587068,2.78844272,16658.0,16657.0,0.03499479]
[1672773587329,3.40477672,16658.0,16657.0,0.03499479]
[1672773587848,3.14158772,16658.0,16657.0,0.03499479]
[1672773588105,3.14158772,16658.0,16656.0,0.87281256]
[1672773588315,0.616334,16657.0,16656.0,0.87281256]
[1672773588607,1.200696,16657.0,16656.0,0.87281256]
[1672773589123,1.200696,16657.0,16656.0,0.87290282]
[1672773589630,1.200696,16657.0,16656.0,0.87281256]
[1672773589885,3.40488472,16657.0,16654.0,0.6787]
[1672773590134,0.54016725,16655.0,16654.0,0.86693944]
[1672773590390,2.13802367,16655.0,16654.0,0.86702971]
[1672773590653,2.13802367,16655.0,16654.0,0.86693944]
[1672773590654,2.12210967,16655.0,16654.0,0.86693944]
[1672773590926,2.79869642,16655.0,16653.0,0.31299768]
[1672773591179,1.2742674,16654.0,16653.0,0.31299768]
[1672773591474,2.4751794,16654.0,16652.0,0.50713826]
[1672773591717,0.99743642,16653.0,16652.0,0.84339833]
[1672773591954,2.7384404,16653.0,16652.0,0.84580802]
[1672773592221,0.953637,16653.0,16652.0,0.84580802]
[1672773592490,1.42496778,16653.0,16652.0,0.84339833]
[1672773593002,1.42497108,16653.0,16652.0,0.84339833]
[1672773593260,1.05014582,16653.0,16652.0,0.84339833]
[1672773593520,0.44965382,16653.0,16652.0,0.84339833]
[1672773593776,0.44965382,16653.0,16652.0,1.25950075]
[1672773594067,1.05014582,16653.0,16652.0,1.25950075]
[1672773594329,1.40997917,16653.0,16652.0,1.25950075]
[1672773594825,0.80948717,16653.0,16652.0,1.25950075]
[1672773595082,0.80948717,16653.0,16652.0,1.84083475]
[1672773595343,0.80948717,16653.0,16652.0,2.02103475]
[1672773595585,1.07925786,16653.0,16652.0,2.02103475]
[1672773595835,0.62960404,16653.0,16652.0,3.22209075]
[1672773596089,0.62960404,16653.0,16652.0,3.34209075]
[1672773596358,0.62960404,16653.0,16652.0,3.34221122]
[1672773596652,0.80941908,16653.0,16652.0,3.34221122]
[1672773596910,0.44958573,16653.0,16652.0,3.34221122]
[1672773597668,0.44958573,16653.0,16652.0,2.74168322]
[1672773598168,0.17981504,16653.0,16652.0,2.9113852]
[1672773598419,0.17981504,16653.0,16652.0,3.8113852]
[1672773598691,0.17981504,16653.0,16652.0,3.8112653]
[1672773600908,0.17981504,16653.0,16652.0,4.4117933]
[1672773601148,0.17981504,16653.0,16652.0,4.7120433]
[1672773601402,0.17981504,16653.0,16652.0,5.29839713]
[1672773601657,0.17981504,16653.0,16652.0,4.69786913]
[1672773602426,0.80941908,16654.0,16652.0,4.69786913]
[1672773602673,0.17981504,16653.0,16652.0,3.52023271]
[1672773602927,0.17981504,16653.0,16652.0,4.69656913]
[1672773603429,0.17981504,16653.0,16652.0,4.57656913]
[1672773603683,0.17981504,16653.0,16652.0,4.61156913]
[1672773603935,0.17981504,16653.0,16652.0,4.57656913]
[1672773604151,0.17981504,16653.0,16652.0,4.69656913]
[1672773605193,0.17981504,16653.0,16652.0,4.57656913]
[1672773605413,0.18081504,16653.0,16652.0,4.71756913]
[1672773606679,0.18081504,16653.0,16652.0,3.81679113]
[1672773607179,0.45058573,16653.0,16652.0,4.11705113]
[1672773607427,0.45058573,16653.0,16652.0,4.71757913]
[1672773607699,0.45058573,16653.0,16652.0,4.11705113]
[1672773607700,0.18081504,16653.0,16652.0,4.11705113]
[1672773608200,0.18081504,16653.0,16652.0,4.71757913]
[1672773610197,0.18081504,16653.0,16652.0,4.12555113]
[1672773611797,0.45058573,16653.0,16652.0,4.12555113]
[1672773612525,0.18081504,16653.0,16652.0,4.12555113]
[1672773613268,0.45058573,16653.0,16652.0,4.12555113]
[1672773613515,0.45058573,16653.0,16652.0,3.22555113]
[1672773613761,0.45058573,16653.0,16652.0,3.22543066]
[1672773613991,0.45058573,16653.0,16652.0,3.82595866]
[1672773614225,0.45058573,16653.0,16652.0,3.52569866]
[1672773614568,0.45058573,16653.0,16652.0,2.92517066]
[1672773614791,0.81041908,16653.0,16652.0,2.92517066]
[1672773615300,0.63060404,16653.0,16652.0,2.92517066]
[1672773615559,0.81048717,16653.0,16652.0,1.70830866]
[1672773616032,0.81048717,16653.0,16652.0,2.32464266]
[1672773616754,0.63051213,16653.0,16652.0,2.32464266]
[1672773617035,0.63051213,16653.0,16652.0,2.92517066]
[1672773617288,0.63051213,16653.0,16652.0,2.92529054]
[1672773617793,0.63051213,16653.0,16652.0,1.70830866]
[1672773618047,0.63051213,16653.0,16652.0,2.32464266]
[1672773618308,0.63051213,16653.0,16652.0,1.70842854]
[1672773618579,0.81048717,16653.0,16652.0,1.70842854]
[1672773618844,0.81048717,16653.0,16652.0,2.32476254]
[1672773619091,0.63054357,16653.0,16652.0,2.32476254]
[1672773619607,0.63054357,16653.0,16652.0,2.3246544]
[1672773620112,0.63054357,16653.0,16652.0,1.7083204]
[1672773620359,0.81048717,16653.0,16652.0,2.3246544]
[1672773620605,0.63061001,16653.0,16652.0,2.3246544]
[1672773621138,0.81048717,16653.0,16652.0,2.3246544]
[1672773621647,0.63060542,16653.0,16652.0,3.5257104]
[1672773621878,0.63060542,16653.0,16652.0,2.3246544]
[1672773622386,0.63060542,16653.0,16652.0,4.4257104]
[1672773623625,0.4507074,16653.0,16652.0,4.4257104]
[1672773623870,0.4507074,16653.0,16652.0,4.40212504]